[Event "*** Titled Tuesday Blitz"]
[Site "Chess.com"]
[Date "2020.05.05"]
[Round "10"]
[White "shav3184"]
[Black "AshotParvanyan"]
[Result "0-1"]
[WhiteElo "2340"]
[BlackElo "2480"]
[TimeControl "180+1"]
[EndTime "12:00:10 PDT"]
[Termination "AshotParvanyan won by checkmate"]

1. e4 {[%clk 0:03:00.9]} 1... d6 {[%clk 0:02:30.5]} 2. d4 {[%clk 0:02:58.1]}
2... Nf6 {[%clk 0:02:27]} 3. Nc3 {[%clk 0:02:57.9]} 3... g6 {[%clk 0:02:26.9]}
4. Nf3 {[%clk 0:02:53.3]} 4... Bg7 {[%clk 0:02:26]} 5. Be2 {[%clk 0:02:53.3]}
5... O-O {[%clk 0:02:26.1]} 6. O-O {[%clk 0:02:52.8]} 6... c6 {[%clk 0:02:26.6]}
7. Be3 {[%clk 0:02:50.7]} 7... Nbd7 {[%clk 0:02:25.1]} 8. h3 {[%clk 0:02:40.8]}
8... e5 {[%clk 0:02:24]} 9. dxe5 {[%clk 0:02:39.3]} 9... dxe5 {[%clk 0:02:22.4]}
10. Nd2 {[%clk 0:02:30.2]} 10... b5 {[%clk 0:02:13.9]} 11. a4 {[%clk 0:02:02.9]}
11... b4 {[%clk 0:02:11.5]} 12. Na2 {[%clk 0:02:02.9]} 12... a5 {[%clk
0:02:10.8]} 13. c3 {[%clk 0:01:59.4]} 13... c5 {[%clk 0:02:06.5]} 14. Nc4 {[%clk
0:01:47.7]} 14... Bb7 {[%clk 0:01:52.5]} 15. Nd6 {[%clk 0:01:24.4]} 15... Bxe4
{[%clk 0:01:40.4]} 16. Nxe4 {[%clk 0:01:15.6]} 16... Nxe4 {[%clk 0:01:41.3]} 17.
Bf3 {[%clk 0:01:15.9]} 17... Ndf6 {[%clk 0:01:39.4]} 18. Qc2 {[%clk 0:01:15.8]}
18... Qd5 {[%clk 0:00:44]} 19. c4 {[%clk 0:00:29.5]} 19... b3 {[%clk 0:00:37.7]}
20. Qxb3 {[%clk 0:00:19.3]} 20... Qe6 {[%clk 0:00:36.7]} 21. Qc2 {[%clk
0:00:18.6]} 21... Qf5 {[%clk 0:00:12.8]} 22. Nc3 {[%clk 0:00:16.2]} 22... Nxc3
{[%clk 0:00:07.8]} 23. Qxc3 {[%clk 0:00:16.4]} 23... e4 {[%clk 0:00:07.4]} 24.
Be2 {[%clk 0:00:16.5]} 24... Rfc8 {[%clk 0:00:03.9]} 25. Qc2 {[%clk 0:00:15.2]}
25... Nh5 {[%clk 0:00:03.6]} 26. Bg4 {[%clk 0:00:14.4]} 26... Qf6 {[%clk
0:00:02.4]} 27. Bxh5 {[%clk 0:00:14.3]} 27... gxh5 {[%clk 0:00:02.7]} 28. Rab1
{[%clk 0:00:14.5]} 28... Qe6 {[%clk 0:00:02.8]} 29. Rfd1 {[%clk 0:00:14.5]}
29... Rab8 {[%clk 0:00:03.1]} 30. b3 {[%clk 0:00:14.4]} 30... h6 {[%clk
0:00:03.6]} 31. Rd5 {[%clk 0:00:14.2]} 31... Qg6 {[%clk 0:00:03.4]} 32. Rbd1
{[%clk 0:00:13.8]} 32... Bf6 {[%clk 0:00:03.1]} 33. Bxc5 {[%clk 0:00:13.5]}
33... Rd8 {[%clk 0:00:02.8]} 34. Be3 {[%clk 0:00:12.4]} 34... Rxd5 {[%clk
0:00:02]} 35. Rxd5 {[%clk 0:00:13.3]} 35... Bg5 {[%clk 0:00:01.6]} 36. Bxg5
{[%clk 0:00:12.3]} 36... hxg5 {[%clk 0:00:02.1]} 37. Qd2 {[%clk 0:00:13.1]}
37... f6 {[%clk 0:00:02.2]} 38. Rd7 {[%clk 0:00:12.8]} 38... Re8 {[%clk
0:00:01.4]} 39. Qd5+ {[%clk 0:00:12.6]} 39... Kh8 {[%clk 0:00:01.3]} 40. Qb7
{[%clk 0:00:12.4]} 40... Rf8 {[%clk 0:00:01.1]} 41. Qc7 {[%clk 0:00:11.5]} 41...
e3 {[%clk 0:00:01.6]} 42. fxe3 {[%clk 0:00:11.1]} 42... g4 {[%clk 0:00:02.3]}
43. h4 {[%clk 0:00:10.7]} 43... g3 {[%clk 0:00:02.2]} 44. Qf4 {[%clk 0:00:10.2]}
44... Qb1+ {[%clk 0:00:02.1]} 45. Qf1 {[%clk 0:00:10.2]} 45... Qxb3 {[%clk
0:00:02.7]} 46. Rd4 {[%clk 0:00:09]} 46... Qxe3+ {[%clk 0:00:02.6]} 47. Kh1
{[%clk 0:00:09.4]} 47... Qxd4 {[%clk 0:00:03]} 48. Qf5 {[%clk 0:00:09.4]} 48...
Qxh4+ {[%clk 0:00:03]} 49. Kg1 {[%clk 0:00:08.3]} 49... Qh2+ {[%clk 0:00:03.2]}
50. Kf1 {[%clk 0:00:08.6]} 50... Qh1+ {[%clk 0:00:03.7]} 51. Ke2 {[%clk
0:00:08.7]} 51... Qxg2+ {[%clk 0:00:04.2]} 52. Kd3 {[%clk 0:00:09.6]} 52... Rd8+
{[%clk 0:00:02.7]} 53. Kc3 {[%clk 0:00:09.6]} 53... Qd2+ {[%clk 0:00:02.8]} 54.
Kb3 {[%clk 0:00:09.7]} 54... Rb8+ {[%clk 0:00:03.4]} 55. Ka3 {[%clk 0:00:10]}
55... Qb2# {[%clk 0:00:03.9]} 0-1

[Event "*** Titled Tuesday Blitz"]
[Site "Chess.com"]
[Date "2020.05.05"]
[Round "10"]
[White "bakki78"]
[Black "davidkalashian"]
[Result "0-1"]
[WhiteElo "2699"]
[BlackElo "2559"]
[TimeControl "180+1"]
[EndTime "12:00:11 PDT"]
[Termination "davidkalashian won by resignation"]

1. e4 {[%clk 0:03:00.9]} 1... c5 {[%clk 0:02:59]} 2. Nf3 {[%clk 0:02:59.7]} 2...
a6 {[%clk 0:02:59.2]} 3. g3 {[%clk 0:02:57.9]} 3... d6 {[%clk 0:02:57.6]} 4. Bg2
{[%clk 0:02:57.2]} 4... Nf6 {[%clk 0:02:56.7]} 5. Qe2 {[%clk 0:02:56.7]} 5...
Nc6 {[%clk 0:02:54.8]} 6. c3 {[%clk 0:02:56.3]} 6... e6 {[%clk 0:02:52]} 7. d4
{[%clk 0:02:51.2]} 7... cxd4 {[%clk 0:02:52.3]} 8. cxd4 {[%clk 0:02:50.9]} 8...
d5 {[%clk 0:02:49.9]} 9. e5 {[%clk 0:02:50.6]} 9... Ne4 {[%clk 0:02:50.2]} 10.
O-O {[%clk 0:02:50.6]} 10... Be7 {[%clk 0:02:48]} 11. Be3 {[%clk 0:02:50.9]}
11... O-O {[%clk 0:02:45.3]} 12. Ne1 {[%clk 0:02:51.3]} 12... f6 {[%clk
0:02:39.2]} 13. f3 {[%clk 0:02:49.8]} 13... Ng5 {[%clk 0:02:39]} 14. h4 {[%clk
0:02:49]} 14... Nf7 {[%clk 0:02:38]} 15. f4 {[%clk 0:02:49.4]} 15... Nh6 {[%clk
0:02:24.8]} 16. Bf2 {[%clk 0:02:36.4]} 16... Nf5 {[%clk 0:02:13.6]} 17. Nf3
{[%clk 0:02:35.5]} 17... fxe5 {[%clk 0:02:10.8]} 18. dxe5 {[%clk 0:02:34.9]}
18... Bd7 {[%clk 0:02:01]} 19. Rd1 {[%clk 0:02:28.3]} 19... Qe8 {[%clk
0:01:57.5]} 20. Nbd2 {[%clk 0:02:15.4]} 20... Qg6 {[%clk 0:01:54.5]} 21. Nf1
{[%clk 0:02:15.4]} 21... Rac8 {[%clk 0:01:48.9]} 22. Kh2 {[%clk 0:02:09.8]}
22... Nh6 {[%clk 0:01:44.7]} 23. Ng5 {[%clk 0:02:00.3]} 23... Bxg5 {[%clk
0:01:37.7]} 24. hxg5 {[%clk 0:01:59.1]} 24... Nf5 {[%clk 0:01:32.7]} 25. Bf3
{[%clk 0:01:57.9]} 25... Qe8 {[%clk 0:01:27.9]} 26. Rac1 {[%clk 0:01:55]} 26...
Nfe7 {[%clk 0:01:17.7]} 27. Ne3 {[%clk 0:01:47.9]} 27... Ng6 {[%clk 0:01:15]}
28. Bh5 {[%clk 0:01:41.3]} 28... Qf7 {[%clk 0:01:06.1]} 29. Ng2 {[%clk 0:01:34]}
29... Be8 {[%clk 0:01:00.2]} 30. Bc5 {[%clk 0:01:31.3]} 30... Nce7 {[%clk
0:00:50.1]} 31. Bd6 {[%clk 0:01:15.1]} 31... Rxc1 {[%clk 0:00:49.1]} 32. Rxc1
{[%clk 0:01:14.2]} 32... Bb5 {[%clk 0:00:41.3]} 33. Qd1 {[%clk 0:01:03.2]} 33...
Bc6 {[%clk 0:00:40.7]} 34. Nh4 {[%clk 0:00:59.9]} 34... Rd8 {[%clk 0:00:31.8]}
35. Bxe7 {[%clk 0:00:48.8]} 35... Qxe7 {[%clk 0:00:30.6]} 36. Nxg6 {[%clk
0:00:49.3]} 36... hxg6 {[%clk 0:00:30.1]} 37. Bxg6 {[%clk 0:00:49.5]} 37... Be8
{[%clk 0:00:26.8]} 38. Bxe8 {[%clk 0:00:40.9]} 38... Qxe8 {[%clk 0:00:26.6]} 39.
Kg2 {[%clk 0:00:40.2]} 39... d4 {[%clk 0:00:26.9]} 40. Qd3 {[%clk 0:00:36.6]}
40... Qd7 {[%clk 0:00:21.1]} 41. Kf3 {[%clk 0:00:23.1]} 41... Qd5+ {[%clk
0:00:20.8]} 42. Kg4 {[%clk 0:00:23]} 42... Qxa2 {[%clk 0:00:20.4]} 43. Rc7
{[%clk 0:00:22.5]} 43... Qa5 {[%clk 0:00:15.1]} 44. Rxb7 {[%clk 0:00:19.2]}
44... Qd5 {[%clk 0:00:12.1]} 45. Rc7 {[%clk 0:00:18.4]} 45... Rd7 {[%clk
0:00:10.4]} 46. Rc8+ {[%clk 0:00:17.4]} 46... Rd8 {[%clk 0:00:10.1]} 47. Rc7
{[%clk 0:00:15.5]} 47... Rd7 {[%clk 0:00:10.1]} 48. Rc8+ {[%clk 0:00:15.7]}
48... Rd8 {[%clk 0:00:10.3]} 49. Rxd8+ {[%clk 0:00:15.1]} 49... Qxd8 {[%clk
0:00:09.6]} 50. Kf3 {[%clk 0:00:15]} 50... Qd5+ {[%clk 0:00:09.1]} 51. Qe4
{[%clk 0:00:15.2]} 51... Qb3+ {[%clk 0:00:09.2]} 52. Kg4 {[%clk 0:00:14.2]}
52... d3 {[%clk 0:00:07.6]} 53. g6 {[%clk 0:00:14.2]} 53... Qd1+ {[%clk
0:00:06.6]} 54. Kh3 {[%clk 0:00:14.3]} 54... Qf1+ {[%clk 0:00:05.3]} 55. Kh2
{[%clk 0:00:13.9]} 55... Qe2+ {[%clk 0:00:04.3]} 56. Qxe2 {[%clk 0:00:13.2]}
56... dxe2 {[%clk 0:00:05.2]} 0-1

[Event "*** Titled Tuesday Blitz"]
[Site "Chess.com"]
[Date "2020.05.05"]
[Round "10"]
[White "Redbandit87"]
[Black "vladimirdamjanovic"]
[Result "0-1"]
[WhiteElo "2455"]
[BlackElo "2604"]
[TimeControl "180+1"]
[EndTime "12:00:11 PDT"]
[Termination "vladimirdamjanovic won by resignation"]

1. d4 {[%clk 0:03:00.9]} 1... Nf6 {[%clk 0:02:58.6]} 2. Bf4 {[%clk 0:02:55.3]}
2... g6 {[%clk 0:02:57.8]} 3. Nc3 {[%clk 0:02:53.2]} 3... d5 {[%clk 0:02:56.9]}
4. Qd2 {[%clk 0:02:52.6]} 4... Bg7 {[%clk 0:02:54.9]} 5. O-O-O {[%clk
0:02:50.2]} 5... O-O {[%clk 0:02:54.6]} 6. Bh6 {[%clk 0:02:49.9]} 6... c6 {[%clk
0:02:47.7]} 7. h4 {[%clk 0:02:47.4]} 7... Bxh6 {[%clk 0:02:45.1]} 8. Qxh6 {[%clk
0:02:46.5]} 8... Ng4 {[%clk 0:02:46]} 9. Qf4 {[%clk 0:02:46.2]} 9... Qd6 {[%clk
0:02:44.7]} 10. Qxd6 {[%clk 0:02:43.3]} 10... exd6 {[%clk 0:02:45.6]} 11. Nh3
{[%clk 0:02:43.4]} 11... Bf5 {[%clk 0:02:44.7]} 12. e3 {[%clk 0:02:34.2]} 12...
Nd7 {[%clk 0:02:44.7]} 13. Bd3 {[%clk 0:02:32.5]} 13... Bxd3 {[%clk 0:02:44.3]}
14. Rxd3 {[%clk 0:02:30.7]} 14... f5 {[%clk 0:02:45.2]} 15. f3 {[%clk
0:02:30.4]} 15... Ngf6 {[%clk 0:02:41.2]} 16. Ng5 {[%clk 0:02:29.5]} 16... Rfe8
{[%clk 0:02:39.1]} 17. Re1 {[%clk 0:02:20.9]} 17... Re7 {[%clk 0:02:36.3]} 18.
Rd2 {[%clk 0:02:13.4]} 18... Rae8 {[%clk 0:02:34.4]} 19. Rde2 {[%clk 0:02:13.7]}
19... b5 {[%clk 0:02:33.2]} 20. a3 {[%clk 0:02:13.2]} 20... a5 {[%clk
0:02:31.3]} 21. Kd2 {[%clk 0:02:12.9]} 21... a4 {[%clk 0:02:29.7]} 22. Nh3
{[%clk 0:02:09.4]} 22... Nb6 {[%clk 0:02:29.7]} 23. b3 {[%clk 0:02:07.7]} 23...
axb3 {[%clk 0:02:29.8]} 24. cxb3 {[%clk 0:02:08.6]} 24... Ra8 {[%clk 0:02:29.9]}
25. Nb1 {[%clk 0:02:02]} 25... c5 {[%clk 0:02:19]} 26. Nf2 {[%clk 0:01:57.8]}
26... c4 {[%clk 0:02:16]} 27. b4 {[%clk 0:01:55.9]} 27... Nh5 {[%clk 0:02:11.1]}
28. Nh3 {[%clk 0:01:46.4]} 28... Na4 {[%clk 0:02:03.5]} 29. Kc2 {[%clk
0:01:39.1]} 29... Ng3 {[%clk 0:01:59.4]} 30. Nf4 {[%clk 0:01:25.4]} 30... Nxe2
{[%clk 0:01:58.1]} 31. Rxe2 {[%clk 0:01:26.3]} 31... Nb6 {[%clk 0:01:58.4]} 32.
Kb2 {[%clk 0:01:25.8]} 32... Rea7 {[%clk 0:01:57.8]} 33. Kc2 {[%clk 0:01:21]}
33... Kf7 {[%clk 0:01:53.1]} 34. Kb2 {[%clk 0:01:19.8]} 34... h6 {[%clk
0:01:52.2]} 35. Re1 {[%clk 0:01:16.6]} 35... g5 {[%clk 0:01:51.8]} 36. hxg5
{[%clk 0:01:16.3]} 36... hxg5 {[%clk 0:01:52.7]} 37. Nh3 {[%clk 0:01:16.4]}
37... Kf6 {[%clk 0:01:45.3]} 38. Nf2 {[%clk 0:01:09.2]} 38... Rh7 {[%clk
0:01:37.5]} 39. Nd1 {[%clk 0:00:58.5]} 39... Rh2 {[%clk 0:01:34.1]} 40. Re2
{[%clk 0:00:58.3]} 40... Na4+ {[%clk 0:01:29.1]} 41. Ka2 {[%clk 0:00:56]} 41...
g4 {[%clk 0:01:13]} 42. fxg4 {[%clk 0:00:55.4]} 42... fxg4 {[%clk 0:01:13.9]}
43. Ndc3 {[%clk 0:00:55.9]} 43... Nxc3+ {[%clk 0:01:06.2]} 44. Nxc3 {[%clk
0:00:56.8]} 44... Kf5 {[%clk 0:01:05]} 45. Nxb5 {[%clk 0:00:48.2]} 45... Ke4
{[%clk 0:00:43.2]} 46. Nc3+ {[%clk 0:00:39.9]} 46... Kd3 {[%clk 0:00:42.2]} 47.
Kb2 {[%clk 0:00:39.9]} 47... Rf8 {[%clk 0:00:32.2]} 48. b5 {[%clk 0:00:37.5]}
48... g3 {[%clk 0:00:29.2]} 49. a4 {[%clk 0:00:16]} 49... Rf2 {[%clk 0:00:26.8]}
50. b6 {[%clk 0:00:14.9]} 50... Rxe2+ {[%clk 0:00:19.5]} 51. Nxe2 {[%clk
0:00:15.8]} 51... Kxe2 {[%clk 0:00:20.1]} 52. b7 {[%clk 0:00:14.8]} 52... Rh8
{[%clk 0:00:19.8]} 53. a5 {[%clk 0:00:15.2]} 53... Kd2 {[%clk 0:00:17.9]} 54. a6
{[%clk 0:00:14.7]} 54... c3+ {[%clk 0:00:18.8]} 55. Ka2 {[%clk 0:00:14.6]} 55...
c2 {[%clk 0:00:19.4]} 56. a7 {[%clk 0:00:14.7]} 56... c1=Q {[%clk 0:00:19.2]}
57. b8=Q {[%clk 0:00:15.3]} 57... Qc2+ {[%clk 0:00:17.4]} 58. Ka3 {[%clk
0:00:15.5]} 58... Qc3+ {[%clk 0:00:07.4]} 59. Ka2 {[%clk 0:00:15.6]} 59... Rh1
{[%clk 0:00:07.8]} 60. Qb2+ {[%clk 0:00:07.7]} 60... Qxb2+ {[%clk 0:00:08]} 61.
Kxb2 {[%clk 0:00:08.6]} 61... Rh8 {[%clk 0:00:07.8]} 0-1

[Event "*** Titled Tuesday Blitz"]
[Site "Chess.com"]
[Date "2020.05.05"]
[Round "10"]
[White "Lion-Al-Messi"]
[Black "Sosat98"]
[Result "0-1"]
[WhiteElo "2425"]
[BlackElo "2645"]
[TimeControl "180+1"]
[EndTime "12:00:11 PDT"]
[Termination "Sosat98 won by resignation"]

1. d4 {[%clk 0:03:00.9]} 1... d5 {[%clk 0:02:59.5]} 2. Nf3 {[%clk 0:02:57.9]}
2... Nf6 {[%clk 0:02:56.6]} 3. Nc3 {[%clk 0:02:55.5]} 3... Bf5 {[%clk
0:02:48.1]} 4. Bg5 {[%clk 0:02:49.1]} 4... e6 {[%clk 0:02:46.8]} 5. e3 {[%clk
0:02:47.4]} 5... Nbd7 {[%clk 0:02:42.7]} 6. Bd3 {[%clk 0:02:46.4]} 6... Bg6
{[%clk 0:02:33.9]} 7. O-O {[%clk 0:02:44.8]} 7... Be7 {[%clk 0:02:33.8]} 8. Qe2
{[%clk 0:02:40.5]} 8... Ne4 {[%clk 0:02:29]} 9. Bxe7 {[%clk 0:02:36.9]} 9...
Qxe7 {[%clk 0:02:21.3]} 10. Bxe4 {[%clk 0:02:36.4]} 10... dxe4 {[%clk
0:02:20.3]} 11. Nd2 {[%clk 0:02:36]} 11... f5 {[%clk 0:02:12.8]} 12. f3 {[%clk
0:02:29.7]} 12... Bh5 {[%clk 0:02:05.7]} 13. Nb5 {[%clk 0:02:28.3]} 13... Nf6
{[%clk 0:01:58]} 14. Qc4 {[%clk 0:02:27.3]} 14... c6 {[%clk 0:01:58.1]} 15. Nc3
{[%clk 0:02:24.3]} 15... Nd5 {[%clk 0:01:53.3]} 16. Rae1 {[%clk 0:02:19.6]}
16... exf3 {[%clk 0:00:58]} 17. Nxf3 {[%clk 0:02:18.4]} 17... Bxf3 {[%clk
0:00:56.7]} 18. Rxf3 {[%clk 0:02:17.3]} 18... O-O-O {[%clk 0:00:55.7]} 19. Nxd5
{[%clk 0:02:13.8]} 19... exd5 {[%clk 0:00:54.4]} 20. Qd3 {[%clk 0:02:13.9]}
20... g6 {[%clk 0:00:53.1]} 21. c3 {[%clk 0:02:14.2]} 21... Rde8 {[%clk
0:00:52.8]} 22. b4 {[%clk 0:02:13.7]} 22... Qh4 {[%clk 0:00:52.7]} 23. g3 {[%clk
0:02:10]} 23... Qg4 {[%clk 0:00:49.4]} 24. Kg2 {[%clk 0:02:04.3]} 24... b5
{[%clk 0:00:45.7]} 25. Rf4 {[%clk 0:02:03.9]} 25... Qg5 {[%clk 0:00:44.9]} 26.
a4 {[%clk 0:02:03.3]} 26... a6 {[%clk 0:00:45.2]} 27. Ra1 {[%clk 0:02:01.5]}
27... Kb7 {[%clk 0:00:44.9]} 28. Qd2 {[%clk 0:01:52.8]} 28... Qf6 {[%clk
0:00:25.5]} 29. Raf1 {[%clk 0:01:22.5]} 29... Qe6 {[%clk 0:00:25.4]} 30. R4f3
{[%clk 0:01:18.1]} 30... Qe4 {[%clk 0:00:25]} 31. Kf2 {[%clk 0:01:10.3]} 31...
g5 {[%clk 0:00:22.5]} 32. Kg1 {[%clk 0:01:09.2]} 32... Rhf8 {[%clk 0:00:21.7]}
33. Qf2 {[%clk 0:01:08.5]} 33... Re7 {[%clk 0:00:18.2]} 34. Rxf5 {[%clk
0:01:03]} 34... Rxf5 {[%clk 0:00:18]} 35. Qxf5 {[%clk 0:01:03.6]} 35... Qxe3+
{[%clk 0:00:18.7]} 36. Kg2 {[%clk 0:00:46.7]} 36... h5 {[%clk 0:00:18.9]} 37.
axb5 {[%clk 0:00:41.7]} 37... axb5 {[%clk 0:00:19.8]} 38. Rf3 {[%clk 0:00:32.8]}
38... Qe2+ {[%clk 0:00:16.6]} 39. Rf2 {[%clk 0:00:32.5]} 39... Qe3 {[%clk
0:00:16.2]} 40. Qf3 {[%clk 0:00:27.5]} 40... g4 {[%clk 0:00:15.1]} 41. Qxe3
{[%clk 0:00:22.8]} 41... Rxe3 {[%clk 0:00:16]} 42. Rc2 {[%clk 0:00:12.7]} 42...
Rf3 {[%clk 0:00:13.2]} 43. h3 {[%clk 0:00:05.5]} 43... Kc7 {[%clk 0:00:13.4]}
44. hxg4 {[%clk 0:00:05.3]} 44... hxg4 {[%clk 0:00:13.5]} 45. Rc1 {[%clk
0:00:05.8]} 45... Kd6 {[%clk 0:00:13.9]} 46. Rc2 {[%clk 0:00:06.2]} 46... Ke6
{[%clk 0:00:14.5]} 47. Re2+ {[%clk 0:00:06.8]} 47... Kf5 {[%clk 0:00:14.8]} 48.
Re5+ {[%clk 0:00:06.2]} 48... Kf6 {[%clk 0:00:15.2]} 49. Rh5 {[%clk 0:00:05.5]}
49... Rxc3 {[%clk 0:00:15.4]} 50. Rh6+ {[%clk 0:00:03.5]} 50... Kf5 {[%clk
0:00:15.9]} 51. Rd6 {[%clk 0:00:02.2]} 51... Rc2+ {[%clk 0:00:14.6]} 52. Kg1
{[%clk 0:00:01.6]} 52... Ke4 {[%clk 0:00:15.2]} 53. Rf6 {[%clk 0:00:02]} 53...
Kxd4 {[%clk 0:00:11.3]} 54. Rf4+ {[%clk 0:00:02.9]} 54... Ke3 {[%clk 0:00:11.9]}
55. Rxg4 {[%clk 0:00:03.6]} 55... d4 {[%clk 0:00:11.7]} 56. Rg6 {[%clk
0:00:03.2]} 56... d3 {[%clk 0:00:11.2]} 57. Re6+ {[%clk 0:00:03.7]} 57... Kf3
{[%clk 0:00:11.7]} 58. Rd6 {[%clk 0:00:04.6]} 58... d2 {[%clk 0:00:11.2]} 59.
Rd3+ {[%clk 0:00:04.3]} 0-1

[Event "*** Titled Tuesday Blitz"]
[Site "Chess.com"]
[Date "2020.05.05"]
[Round "10"]
[White "MilanovicDan"]
[Black "bancsoo"]
[Result "0-1"]
[WhiteElo "2527"]
[BlackElo "2750"]
[TimeControl "180+1"]
[EndTime "12:00:13 PDT"]
[Termination "bancsoo won on time"]

1. d4 {[%clk 0:03:00.9]} 1... d5 {[%clk 0:02:58.9]} 2. c4 {[%clk 0:02:58.5]}
2... e6 {[%clk 0:02:59.4]} 3. Nc3 {[%clk 0:02:57.8]} 3... Nf6 {[%clk 0:02:58.5]}
4. cxd5 {[%clk 0:02:57.9]} 4... exd5 {[%clk 0:02:58.6]} 5. Bg5 {[%clk
0:02:57.7]} 5... c6 {[%clk 0:02:58.3]} 6. e3 {[%clk 0:02:57.6]} 6... Nbd7 {[%clk
0:02:53.4]} 7. Bd3 {[%clk 0:02:57.2]} 7... Bd6 {[%clk 0:02:53.4]} 8. Nge2 {[%clk
0:02:53.8]} 8... Nf8 {[%clk 0:02:53.5]} 9. Qc2 {[%clk 0:02:48.3]} 9... Ng6
{[%clk 0:02:53.2]} 10. O-O-O {[%clk 0:02:41.3]} 10... h6 {[%clk 0:02:46.7]} 11.
Bxf6 {[%clk 0:02:40.5]} 11... Qxf6 {[%clk 0:02:46.3]} 12. f3 {[%clk 0:02:40.5]}
12... O-O {[%clk 0:02:32.7]} 13. Kb1 {[%clk 0:02:33.1]} 13... Nh4 {[%clk
0:02:10.3]} 14. Ng3 {[%clk 0:02:10.3]} 14... Qg5 {[%clk 0:01:40.2]} 15. Qf2
{[%clk 0:02:08.2]} 15... Nf5 {[%clk 0:01:38.1]} 16. Nf1 {[%clk 0:02:03.8]} 16...
Re8 {[%clk 0:01:34.1]} 17. h4 {[%clk 0:01:58.7]} 17... Bg3 {[%clk 0:01:22.5]}
18. Qg1 {[%clk 0:00:58.5]} 18... Nxh4 {[%clk 0:00:38.2]} 19. f4 {[%clk
0:00:47.3]} 19... Bxf4 {[%clk 0:00:38.1]} 20. exf4 {[%clk 0:00:47.1]} 20... Qxg2
{[%clk 0:00:38.8]} 21. Ng3 {[%clk 0:00:35.9]} 21... Qxg1 {[%clk 0:00:35.8]} 22.
Rdxg1 {[%clk 0:00:35.6]} 22... Nf3 {[%clk 0:00:35.9]} 23. Rd1 {[%clk 0:00:30]}
23... Nxd4 {[%clk 0:00:33.6]} 24. f5 {[%clk 0:00:20.7]} 24... Nf3 {[%clk
0:00:29.4]} 25. Rhf1 {[%clk 0:00:17.8]} 25... Ng5 {[%clk 0:00:29]} 26. Nh5
{[%clk 0:00:14.6]} 26... Bd7 {[%clk 0:00:27]} 27. Ne2 {[%clk 0:00:13.9]} 27...
Re5 {[%clk 0:00:25.1]} 28. Nd4 {[%clk 0:00:12.2]} 28... Rae8 {[%clk 0:00:24.4]}
29. Nf3 {[%clk 0:00:11.9]} 29... Re3 {[%clk 0:00:21.1]} 30. Nxg5 {[%clk
0:00:06.3]} 30... hxg5 {[%clk 0:00:22]} 31. f6 {[%clk 0:00:05.3]} 31... g6
{[%clk 0:00:21.8]} 32. Ng7 {[%clk 0:00:05.7]} 32... R8e5 {[%clk 0:00:18.5]} 33.
Rh1 {[%clk 0:00:05.2]} 33... g4 {[%clk 0:00:18]} 34. Rd2 {[%clk 0:00:04.8]}
34... Rh3 {[%clk 0:00:17.7]} 35. Rf1 {[%clk 0:00:02.4]} 35... c5 {[%clk
0:00:16.9]} 36. Kc1 {[%clk 0:00:02.1]} 36... Bc6 {[%clk 0:00:15.9]} 37. Be2
{[%clk 0:00:02.2]} 37... g3 {[%clk 0:00:14.8]} 38. Bg4 {[%clk 0:00:01.9]} 38...
Rh2 {[%clk 0:00:15.2]} 39. Rxh2 {[%clk 0:00:01.7]} 39... gxh2 {[%clk 0:00:15.5]}
40. Rh1 {[%clk 0:00:02.2]} 40... Rg5 {[%clk 0:00:15.5]} 41. Rxh2 {[%clk
0:00:02.4]} 41... Rxg4 {[%clk 0:00:16]} 42. Re2 {[%clk 0:00:02.9]} 42... Re4
{[%clk 0:00:16.4]} 43. Rf2 {[%clk 0:00:02.4]} 43... g5 {[%clk 0:00:16.3]} 44.
Kd2 {[%clk 0:00:02]} 44... Kh7 {[%clk 0:00:16.4]} 45. Nf5 {[%clk 0:00:02.3]}
45... Kg6 {[%clk 0:00:15.9]} 46. Ne7+ {[%clk 0:00:02.9]} 46... Kh5 {[%clk
0:00:16.4]} 47. Rh2+ {[%clk 0:00:03]} 47... Kg4 {[%clk 0:00:16.9]} 48. Rh7
{[%clk 0:00:03.6]} 48... Kf4 {[%clk 0:00:10.1]} 49. Rxf7 {[%clk 0:00:03.5]}
49... Ke5 {[%clk 0:00:10.6]} 50. Rf8 {[%clk 0:00:03.6]} 50... Ke6 {[%clk
0:00:09.3]} 51. Ng6 {[%clk 0:00:03.3]} 51... Rd4+ {[%clk 0:00:03.1]} 52. Ke3
{[%clk 0:00:02.2]} 52... Re4+ {[%clk 0:00:03.7]} 53. Kd2 {[%clk 0:00:02.5]}
53... Be8 {[%clk 0:00:01.7]} 54. Rxe8+ {[%clk 0:00:01.5]} 54... Kf7 {[%clk
0:00:02.5]} 55. Re7+ {[%clk 0:00:01.3]} 55... Rxe7 {[%clk 0:00:02.1]} 0-1